OrganisationURI,OrganisationLabel,OrganisationalUnit,TransactionNumber,Invoice Ref.,BeneficiaryName,Expense Type,Purpose,PaymentDate,Amount
http://statistics.data.gov.uk/id/local-authority-district/23UB,Cheltenham Borough Council,Fire Protection,14041397,178801,A & E Fire Equipment Limited,C1107-CAH015,Building Works,11/03/2016,1170.22
http://statistics.data.gov.uk/id/local-authority-district/23UB,Cheltenham Borough Council,Fire Protection,14041355,179612,A & E Fire Equipment Limited,C1107-CAH015,Building Works,11/03/2016,1369.53
http://statistics.data.gov.uk/id/local-authority-district/23UB,Cheltenham Borough Council,Income and Expenditure on Investment Properties and Changes in Their Fair Value,14043278,181166,A & E Fire Equipment Limited,R2004-FIE040,R & M of Build Programmed,18/03/2016,900.00
http://statistics.data.gov.uk/id/local-authority-district/23UB,Cheltenham Borough Council,Income and Expenditure on Investment Properties and Changes in Their Fair Value,14043276,181276,A & E Fire Equipment Limited,R2004-FIE040,R & M of Build Programmed,18/03/2016,2504.00
http://statistics.data.gov.uk/id/local-authority-district/23UB,Cheltenham Borough Council,Income and Expenditure on Investment Properties and Changes in Their Fair Value,14043277,181279,A & E Fire Equipment Limited,R2004-FIE040,R & M of Build Programmed,18/03/2016,1316.60
http://statistics.data.gov.uk/id/local-authority-district/23UB,Cheltenham Borough Council,Pittville Pump Room Repairs & Maintenance,14043265,181614,A & E Fire Equipment Limited,R2008-CUL113,R & M of Build - Reactive Repairs,18/03/2016,642.84
http://statistics.data.gov.uk/id/local-authority-district/23UB,Cheltenham Borough Council,Town Hall Repairs & Maintenance,14043267,181616,A & E Fire Equipment Limited,R2008-CUL112,R & M of Build - Reactive Repairs,18/03/2016,798.40
http://statistics.data.gov.uk/id/local-authority-district/23UB,Cheltenham Borough Council,Repairs and Maintenance,14043205,181959,A & E Fire Equipment Limited,R2042-HRA100,R & M of Build Fire Systems,11/03/2016,1063.19
http://statistics.data.gov.uk/id/local-authority-district/23UB,Cheltenham Borough Council,Art Gallery & Museum Development,14031462,25517723-15,ADT Fire & Security plc,C1100-CAP121,Construction,07/03/2016,780.00
http://statistics.data.gov.uk/id/local-authority-district/23UB,Cheltenham Borough Council,Scooter Stores,14042801,30609,Allhands Limited T/A Harrold Jones Services,C1107-CAH037,Building Works,04/03/2016,4410.00
http://statistics.data.gov.uk/id/local-authority-district/23UB,Cheltenham Borough Council,Scooter Stores,14042802,30610,Allhands Limited T/A Harrold Jones Services,C1107-CAH037,Building Works,04/03/2016,2223.00
http://statistics.data.gov.uk/id/local-authority-district/23UB,Cheltenham Borough Council,Council Tax Collection,14042927,64691,Alpha Colour Printers Limited,R4300-LTC001,Printing - Services,04/03/2016,1239.00
http://statistics.data.gov.uk/id/local-authority-district/23UB,Cheltenham Borough Council,Housing Benefit Administration,14042927,64691,Alpha Colour Printers Limited,R4300-HBA001,Printing - Services,04/03/2016,1264.00
http://statistics.data.gov.uk/id/local-authority-district/23UB,Cheltenham Borough Council,NNDR Collection,14043408,64971,Alpha Colour Printers Limited,R4300-LTC011,Printing - Services,18/03/2016,759.00
http://statistics.data.gov.uk/id/local-authority-district/23UB,Cheltenham Borough Council,Individual Electoral Registration,14042888,28753,Alpha Response Print & Mail Limited,R4401-ELE010,Services - Fees and Charges,18/03/2016,741.85
http://statistics.data.gov.uk/id/local-authority-district/23UB,Cheltenham Borough Council,Development Control - Applications,14043232,11893,Artful Limited,R4300-DEV001,Printing - Services,18/03/2016,2289.04
http://statistics.data.gov.uk/id/local-authority-district/23UB,Cheltenham Borough Council,Council Tax Collection,14043432,11902,Artful Limited,R4317-LTC001,Non Staff Advertising,18/03/2016,644.80
http://statistics.data.gov.uk/id/local-authority-district/23UB,Cheltenham Borough Council,Cheltenham Business Partnership,14043743,14902,Artworks Design Consultants (Cheltenham) Limited,R4300-HLD130,Printing - Services,31/03/2016,1365.00
http://statistics.data.gov.uk/id/local-authority-district/23UB,Cheltenham Borough Council,Cheltenham Business Partnership,14043744,14904,Artworks Design Consultants (Cheltenham) Limited,R4300-HLD130,Printing - Services,31/03/2016,1000.00
http://statistics.data.gov.uk/id/local-authority-district/23UB,Cheltenham Borough Council,Recreation Centre Repairs & Maintenance,14043358,16748,Astam GBC Consultancy Limited,R2004-REC111,R & M of Build Programmed,31/03/2016,1250.00
http://statistics.data.gov.uk/id/local-authority-district/23UB,Cheltenham Borough Council,Development costs - Garage Sites 2a,14042867,27304/ME/ab,Baily Garner LLP,C1107-CAH052,Building Works,18/03/2016,2026.86
http://statistics.data.gov.uk/id/local-authority-district/23UB,Cheltenham Borough Council,External Improvements,14043042,62831,BIP Solutions Limited,C1107-CAH003,Building Works,04/03/2016,1500.00
http://statistics.data.gov.uk/id/local-authority-district/23UB,Cheltenham Borough Council,Cheltenham Business Partnership,14043404,160227-048,Blackadder Media Limited,R4411-HLD130,Consultancy Fees,18/03/2016,4290.00
http://statistics.data.gov.uk/id/local-authority-district/23UB,Cheltenham Borough Council,NNDR Collection,14043354,162855,Bristow & Sutor,R4406-LTC011,Bailiffs Fees,18/03/2016,739.34
http://statistics.data.gov.uk/id/local-authority-district/23UB,Cheltenham Borough Council,NNDR Collection,14043354,162855,Bristow & Sutor,R4406-LTC011,Bailiffs Fees,18/03/2016,-739.34
http://statistics.data.gov.uk/id/local-authority-district/23UB,Cheltenham Borough Council,Council Tax Collection,14043353,162945,Bristow & Sutor,R4406-LTC001,Bailiffs Fees,18/03/2016,1769.88
http://statistics.data.gov.uk/id/local-authority-district/23UB,Cheltenham Borough Council,Council Tax Collection,14043353,162945,Bristow & Sutor,R4406-LTC001,Bailiffs Fees,18/03/2016,-1769.88
http://statistics.data.gov.uk/id/local-authority-district/23UB,Cheltenham Borough Council,Supervision and Management,14043497,Q010 LV,BT (Business Billing - Durham),R4515-HRA110,Comms - Telephone Call Charges,31/03/2016,1568.33
http://statistics.data.gov.uk/id/local-authority-district/23UB,Cheltenham Borough Council,Supervision and Management,14043725,Q010 MD,BT (Business Billing - Durham),R4514-HRA110,Comms - Telephone Rental/Service Charges,31/03/2016,1981.77
http://statistics.data.gov.uk/id/local-authority-district/23UB,Cheltenham Borough Council,External Improvements,14042933,6781,C &  R Decorating and Maintenance Limited,C1107-CAH003,Building Works,04/03/2016,5471.00
http://statistics.data.gov.uk/id/local-authority-district/23UB,Cheltenham Borough Council,Community Welfare Grants,14043620,2012-89,Cheltenham West End Partnership Limited,R6280-GBD001,Grants,24/03/2016,1300.00
http://statistics.data.gov.uk/id/local-authority-district/23UB,Cheltenham Borough Council,Accountancy,14043555,3115293,CIPFA Business Limited,R1652-SUP009,Training Fees (External),31/03/2016,540.00
http://statistics.data.gov.uk/id/local-authority-district/23UB,Cheltenham Borough Council,Council Tax Collection,14043587,3117161,CIPFA Business Limited,R4701-LTC001,Subscriptions,24/03/2016,2233.65
http://statistics.data.gov.uk/id/local-authority-district/23UB,Cheltenham Borough Council,Housing Benefit Administration,14043587,3117161,CIPFA Business Limited,R4701-HBA001,Subscriptions,24/03/2016,1121.35
http://statistics.data.gov.uk/id/local-authority-district/23UB,Cheltenham Borough Council,Cash Receipting System,14042727,C/IC140433,Civica UK Limited,C4005-CAP012,Computer Software,29/03/2016,40546.95
http://statistics.data.gov.uk/id/local-authority-district/23UB,Cheltenham Borough Council,Cash Receipting System,14043163,C/IC141316,Civica UK Limited,C4005-CAP012,Computer Software,24/03/2016,125326.57
http://statistics.data.gov.uk/id/local-authority-district/23UB,Cheltenham Borough Council,Revenues & Benefits Overheads,14043418,C/RB141673,Civica UK Limited,R4534-LTC101,IT - Maint Agreements,24/03/2016,18572.58
http://statistics.data.gov.uk/id/local-authority-district/23UB,Cheltenham Borough Council,"Cemetery, Crematorium and Churchyards",14043373,557463,Comensura Limited,R1100-CCM001,Agency Staff,11/03/2016,1230.41
http://statistics.data.gov.uk/id/local-authority-district/23UB,Cheltenham Borough Council,"Cemetery, Crematorium and Churchyards",14043495,558054,Comensura Limited,R1100-CCM001,Agency Staff,24/03/2016,1905.44
http://statistics.data.gov.uk/id/local-authority-district/23UB,Cheltenham Borough Council,Accountancy,14043556,106190,Corpstar Investments Limited T/A Logotech Systems,R4400-SUP009,Services - Professional Fees,31/03/2016,2100.00
http://statistics.data.gov.uk/id/local-authority-district/23UB,Cheltenham Borough Council,Crematorium Scheme: New Build,14043038,9014698,Cotswold Archaeology,C1005-CAP601,Surveyors Fees,04/03/2016,3700.00
http://statistics.data.gov.uk/id/local-authority-district/23UB,Cheltenham Borough Council,Household Waste,14042419,3003351,Craemer UK Limited,R4000-WST001,Equipment Purchase,04/03/2016,1480.00
http://statistics.data.gov.uk/id/local-authority-district/23UB,Cheltenham Borough Council,Tourist/Visitor Information Centre,14043158,INV-0251,Creative Tourist Limited,R4400-TOU002,Services - Professional Fees,04/03/2016,5625.00
http://statistics.data.gov.uk/id/local-authority-district/23UB,Cheltenham Borough Council,Tourist/Visitor Information Centre,14043749,INV-0260,Creative Tourist Limited,R4400-TOU002,Services - Professional Fees,31/03/2016,5625.00
http://statistics.data.gov.uk/id/local-authority-district/23UB,Cheltenham Borough Council,External Improvements,14043019,4056,Curtins Consulting Limited,C1107-CAH003,Building Works,04/03/2016,2487.50
http://statistics.data.gov.uk/id/local-authority-district/23UB,Cheltenham Borough Council,Allotments,14043037,930,D A Jones Landscapes,R2075-OPS004,Grounds Maintenance - Contract,11/03/2016,503.00
http://statistics.data.gov.uk/id/local-authority-district/23UB,Cheltenham Borough Council,Parks & Gardens Operations,14043645,932,D A Jones Landscapes,R2706-OPS001,Cleaning - reactive,31/03/2016,1810.00
http://statistics.data.gov.uk/id/local-authority-district/23UB,Cheltenham Borough Council,Civic Pride - Creative Hub,14043403,381,David Mackie,C1100-CAP154,Construction,18/03/2016,2298.40
http://statistics.data.gov.uk/id/local-authority-district/23UB,Cheltenham Borough Council,Community Development,14042946,16,Deborah Jeremiah,R6280-COM001,Grants,11/03/2016,750.00
http://statistics.data.gov.uk/id/local-authority-district/23UB,Cheltenham Borough Council,Community Development,14043574,290216,Deborah Jeremiah,R4401-COM001,Services - Fees and Charges,24/03/2016,1025.00
http://statistics.data.gov.uk/id/local-authority-district/23UB,Cheltenham Borough Council,Public Art,14043469,Chelt002,Diana Hatton Consultancy,R4400-PUB101,Services - Professional Fees,18/03/2016,1250.00
http://statistics.data.gov.uk/id/local-authority-district/23UB,Cheltenham Borough Council,Licensing,14042896,A04753,Disclosure & Barring Service,R9240-REG002,Sale of purchased goods,24/03/2016,792.00
http://statistics.data.gov.uk/id/local-authority-district/23UB,Cheltenham Borough Council,Licensing,14043576,A07815,Disclosure & Barring Service,R1601-REG002,CRB Police Checks,31/03/2016,572.00
http://statistics.data.gov.uk/id/local-authority-district/23UB,Cheltenham Borough Council,Cheltenham Municipal Offices,14043700,39918,Dorma UK Limited,R2047-ADB101,R & M of Build Door Entry Keys,31/03/2016,521.50
http://statistics.data.gov.uk/id/local-authority-district/23UB,Cheltenham Borough Council,Joint Core Strategy,14043151,28914,DPDS Regional Limited - DPDS Consulting Group,R4401-PLP101,Services - Fees and Charges,04/03/2016,3500.00
http://statistics.data.gov.uk/id/local-authority-district/23UB,Cheltenham Borough Council,Car Parks - Off Street R&M,14043359,446270,DTZ DTL Limited,R2001-CPK101,R & M of Fix & Fit - General,18/03/2016,20000.00
http://statistics.data.gov.uk/id/local-authority-district/23UB,Cheltenham Borough Council,Pittville Park Play Area,14043753,Valuation2,Eibe Play Ltd,C4000-CAP125,Acquisition of Equipment,31/03/2016,68085.90
http://statistics.data.gov.uk/id/local-authority-district/23UB,Cheltenham Borough Council,Recreation Centre Repairs & Maintenance,14043617,301267/2/2016,Ener-G Combined Power (South) Limited,R2100-REC111,Electricity,24/03/2016,2793.58
http://statistics.data.gov.uk/id/local-authority-district/23UB,Cheltenham Borough Council,Neighbourhood works,14043044,WM006778,English Landscapes Limited t/a The Landscape Group,C1107-CAH005,Building Works,04/03/2016,60276.21
http://statistics.data.gov.uk/id/local-authority-district/23UB,Cheltenham Borough Council,Neighbourhood works,14043718,WM006878,English Landscapes Limited t/a The Landscape Group,C1107-CAH005,Building Works,31/03/2016,14281.54
http://statistics.data.gov.uk/id/local-authority-district/23UB,Cheltenham Borough Council,Garage Improvements,14043717,WN006879,English Landscapes Limited t/a The Landscape Group,C1107-CAH008,Building Works,31/03/2016,24918.70
http://statistics.data.gov.uk/id/local-authority-district/23UB,Cheltenham Borough Council,Sustainability Measures,14043628,1285,Evolve Home Energy Solutions Limited,C1107-CAH032,Building Works,24/03/2016,562.50
http://statistics.data.gov.uk/id/local-authority-district/23UB,Cheltenham Borough Council,Recreation Centre Repairs & Maintenance,14043728,8058,F T Leisure Limited,R2083-REC111,R&M of Build - Routine,31/03/2016,1200.00
http://statistics.data.gov.uk/id/local-authority-district/23UB,Cheltenham Borough Council,Trade Waste,14042586,SINV-091576,Gelpack Excelsior Limited,R4000-TRW001,Equipment Purchase,18/03/2016,2248.50
http://statistics.data.gov.uk/id/local-authority-district/23UB,Cheltenham Borough Council,External Improvements,14043055,1028,GL Property Maintenance Limited,C1107-CAH003,Building Works,04/03/2016,1154.03
http://statistics.data.gov.uk/id/local-authority-district/23UB,Cheltenham Borough Council,Council Tax Leaflet,14043637,COUNCIL TAX LEAFLET CREDIT DISTRIBUTION,Gloucester City Council,R9100-LTC003,Contributions - County Council,24/03/2016,6103.92
http://statistics.data.gov.uk/id/local-authority-district/23UB,Cheltenham Borough Council,Private Sector Housing Grants,14043496,1800391476,Gloucestershire County Council,R6280-PSH001,Grants,24/03/2016,7975.00
http://statistics.data.gov.uk/id/local-authority-district/23UB,Cheltenham Borough Council,Pensions Backfunding,14043494,800006411,GLOUCESTERSHIRE COUNTY COUNCIL (LGPS ONLY),R1301-SUP038,Enhanced Pension,24/03/2016,16821.22
http://statistics.data.gov.uk/id/local-authority-district/23UB,Cheltenham Borough Council,Homelessness,14043468,210116,Gloucestershire Nightstop,R6280-HOM001,Grants,18/03/2016,5000.00
http://statistics.data.gov.uk/id/local-authority-district/23UB,Cheltenham Borough Council,"Cemetery, Crematorium and Churchyards",14043752,10013518,Goldingham Contracts Limited,R2075-CCM001,Grounds Maintenance - Contract,31/03/2016,572.10
http://statistics.data.gov.uk/id/local-authority-district/23UB,Cheltenham Borough Council,Repairs and Maintenance,14043566,7476,Gooch Group Limited (Cleaning not Products),R2083-HRA100,R&M of Build - Routine,31/03/2016,618.14
http://statistics.data.gov.uk/id/local-authority-district/23UB,Cheltenham Borough Council,Building Control - Fee Earning Work,14043652,0224/16,Graham Harper Associates Limited,R1100-BUC001,Agency Staff,31/03/2016,2214.25
http://statistics.data.gov.uk/id/local-authority-district/23UB,Cheltenham Borough Council,Building Control - Fee Earning Work,14043653,0225/16,Graham Harper Associates Limited,R1100-BUC001,Agency Staff,31/03/2016,3565.16
http://statistics.data.gov.uk/id/local-authority-district/23UB,Cheltenham Borough Council,Building Control - Fee Earning Work,14043654,0226/16,Graham Harper Associates Limited,R1100-BUC001,Agency Staff,31/03/2016,3309.17
http://statistics.data.gov.uk/id/local-authority-district/23UB,Cheltenham Borough Council,Accountancy,14043783,8487865,Grant Thornton UK LLP,R4411-SUP009,Consultancy Fees,31/03/2016,550.00
http://statistics.data.gov.uk/id/local-authority-district/23UB,Cheltenham Borough Council,Recreation Centre Repairs & Maintenance,14043197,3188,Greenway Partnership Limited T/A GPL Building Services,R2700-REC111,Contract Cleaning,18/03/2016,550.00
http://statistics.data.gov.uk/id/local-authority-district/23UB,Cheltenham Borough Council,Recreation Centre Repairs & Maintenance,14043201,3190,Greenway Partnership Limited T/A GPL Building Services,R2077-REC111,R&M of Build - internal structures,18/03/2016,768.00
http://statistics.data.gov.uk/id/local-authority-district/23UB,Cheltenham Borough Council,Flood Risk Management,14043758,43384,Halcrow Group Limited,R5001-FRM101,TPP - Major External Contractors,31/03/2016,1567.50
http://statistics.data.gov.uk/id/local-authority-district/23UB,Cheltenham Borough Council,Flood Risk Management,14043757,43385,Halcrow Group Limited,R5001-FRM101,TPP - Major External Contractors,31/03/2016,3425.19
http://statistics.data.gov.uk/id/local-authority-district/23UB,Cheltenham Borough Council,Development Control - Applications,14043423,50040435,Haymarket Publishing Services Limited,R4701-DEV001,Subscriptions,18/03/2016,1159.00
http://statistics.data.gov.uk/id/local-authority-district/23UB,Cheltenham Borough Council,Development Control - Applications,14042862,50042303,Haymarket Publishing Services Limited,R4701-DEV001,Subscriptions,24/03/2016,849.00
http://statistics.data.gov.uk/id/local-authority-district/23UB,Cheltenham Borough Council,Cheltenham Municipal Offices,14043339,NEWP1391/1,HCL Safety Limited,R2077-ADB101,R&M of Build - internal structures,18/03/2016,4120.00
http://statistics.data.gov.uk/id/local-authority-district/23UB,Cheltenham Borough Council,Supervision and Management,14043072,SIAL/00018985,Herefordshire Housing Limited,R4445-HRA110,Communal Alarms - Monitoring & Maintenance,04/03/2016,543.40
http://statistics.data.gov.uk/id/local-authority-district/23UB,Cheltenham Borough Council,Supervision and Management,14043081,SIAL/00019016,Herefordshire Housing Limited,R4445-HRA110,Communal Alarms - Monitoring & Maintenance,04/03/2016,514.80
http://statistics.data.gov.uk/id/local-authority-district/23UB,Cheltenham Borough Council,Supervision and Management,14043087,SIAL/00019031,Herefordshire Housing Limited,R4445-HRA110,Communal Alarms - Monitoring & Maintenance,04/03/2016,5773.14
http://statistics.data.gov.uk/id/local-authority-district/23UB,Cheltenham Borough Council,General Fund Balance Sheet,14043388,CISDEDUCTIONS0602-050316,HMRC (CBC - CIS),B6220-BAL100,CIS Deductions Control (reallocated),14/03/2016,3039.14
http://statistics.data.gov.uk/id/local-authority-district/23UB,Cheltenham Borough Council,Green Waste,14043567,22085,Hoge 100 Business Systems Limited,R4535-RYC002,IT - Licences,31/03/2016,3761.25
http://statistics.data.gov.uk/id/local-authority-district/23UB,Cheltenham Borough Council,Repairs and Maintenance,14043442,150255AA11,Ian Williams Limited,R2060-HRA100,R & M of Build Cyclical Painting Communal Areas,24/03/2016,25812.72
http://statistics.data.gov.uk/id/local-authority-district/23UB,Cheltenham Borough Council,Built Environment,14043737,104412,Idox Software Limited,R4534-SUP040,IT - Maint Agreements,31/03/2016,57563.24
http://statistics.data.gov.uk/id/local-authority-district/23UB,Cheltenham Borough Council,Car Parks - Off Street Operations,14042736,31107,Imperial Civil Enforcement Solutions Limited,R4534-CPK001,IT - Maint Agreements,18/03/2016,4333.46
http://statistics.data.gov.uk/id/local-authority-district/23UB,Cheltenham Borough Council,Window & Door Renewals,14043680,8058,Inprova Group Limited,C1107-CAH017,Building Works,31/03/2016,6000.00
http://statistics.data.gov.uk/id/local-authority-district/23UB,Cheltenham Borough Council,Licensing,14043599,25556,Intelligent Data Systems (UK) Limited,R4400-REG002,Services - Professional Fees,31/03/2016,510.25
http://statistics.data.gov.uk/id/local-authority-district/23UB,Cheltenham Borough Council,High Street Public Realm Improvements,14043487,17078,IOTA Garden and Home Limited,C1102-CAP205,Landscaping,31/03/2016,14584.00
http://statistics.data.gov.uk/id/local-authority-district/23UB,Cheltenham Borough Council,Development costs - Garage Sites 2a,14043306,4,J Harper & Sons (Leominster) Limited,C1107-CAH052,Building Works,11/03/2016,123066.41
http://statistics.data.gov.uk/id/local-authority-district/23UB,Cheltenham Borough Council,Sports & Open Spaces Operations,14043746,16/004,J P North (Farmer),R2071-OPS002,Open Spaces and Grassed Areas,31/03/2016,750.00
http://statistics.data.gov.uk/id/local-authority-district/23UB,Cheltenham Borough Council,"Cemetery, Crematorium and Churchyards",14043786,5246,J Preece and Sons,R2071-CCM001,Open Spaces and Grassed Areas,31/03/2016,725.00
http://statistics.data.gov.uk/id/local-authority-district/23UB,Cheltenham Borough Council,Press & PR/Communications,14043206,34283,Jadu Limited,R4531-SUP018,IT - Purchase of Software,11/03/2016,6800.00
http://statistics.data.gov.uk/id/local-authority-district/23UB,Cheltenham Borough Council,Joint Core Strategy,14043394,93,Jim Claydon - Planner,R4400-PLP101,Services - Professional Fees,18/03/2016,678.15
http://statistics.data.gov.uk/id/local-authority-district/23UB,Cheltenham Borough Council,Joint Core Strategy,14043392,94,Jim Claydon - Planner,R4400-PLP101,Services - Professional Fees,18/03/2016,678.15
http://statistics.data.gov.uk/id/local-authority-district/23UB,Cheltenham Borough Council,Cheltenham Depot,14043553,INV-0279,JS Security Limited,R4401-ADB103,Services - Fees and Charges,31/03/2016,609.00
http://statistics.data.gov.uk/id/local-authority-district/23UB,Cheltenham Borough Council,Joint Core Strategy,14043427,360918 040216,Kings Chambers,R4400-PLP101,Services - Professional Fees,18/03/2016,5000.00
http://statistics.data.gov.uk/id/local-authority-district/23UB,Cheltenham Borough Council,Waste & Recycling - Marketing,14042861,60689178,Local World Limited (was Northcliffe Media),R4317-RYC007,Non Staff Advertising,11/03/2016,1527.58
http://statistics.data.gov.uk/id/local-authority-district/23UB,Cheltenham Borough Council,Fire Protection,14043040,213,M J Loveridge Limited,C1107-CAH015,Building Works,04/03/2016,3400.00
http://statistics.data.gov.uk/id/local-authority-district/23UB,Cheltenham Borough Council,Recreation Centre Repairs & Maintenance,14043296,10693,Massie Electrics Limited,R2062-REC111,R & M of Build Cyclical Electrical Remedials,18/03/2016,1228.94
http://statistics.data.gov.uk/id/local-authority-district/23UB,Cheltenham Borough Council,Cheltenham Municipal Offices,14043230,11793,Maylarch Environmental Limited,R2013-ADB101,R & M of Build Asbestos,04/03/2016,2547.00
http://statistics.data.gov.uk/id/local-authority-district/23UB,Cheltenham Borough Council,Adaptations for the Disabled (CBC),14043340,REDACTED,Mears Home Improvements (Client Account),C1107-CAH028,Building Works,18/03/2016,8350.25
http://statistics.data.gov.uk/id/local-authority-district/23UB,Cheltenham Borough Council,Disabled Facility Grants,14043167,REDACTED,Mears Home Improvements (Client Account),C5000-CAP221,Grants,04/03/2016,2687.14
http://statistics.data.gov.uk/id/local-authority-district/23UB,Cheltenham Borough Council,ICT,14026980,500068778,MessageLabs Limited T/A Symantec,R4531-SUP005,IT - Purchase of Software,07/03/2016,7560.00
http://statistics.data.gov.uk/id/local-authority-district/23UB,Cheltenham Borough Council,Treasury Management,14043492,5070558,Mishcon de Reya,R4420-COR006,Legal Expenses And Court Costs,24/03/2016,2500.00
http://statistics.data.gov.uk/id/local-authority-district/23UB,Cheltenham Borough Council,Civic Pride - Creative Hub,14042606,CBC_0003,Monument Geomatics Limited,C1005-CAP154,Surveyors Fees,18/03/2016,1595.00
http://statistics.data.gov.uk/id/local-authority-district/23UB,Cheltenham Borough Council,Town Hall Repairs & Maintenance,14043249,1086A,Moore DM Limited,R2004-CUL112,R & M of Build Programmed,11/03/2016,1260.00
http://statistics.data.gov.uk/id/local-authority-district/23UB,Cheltenham Borough Council,Town Hall Repairs & Maintenance,14043249,1086A,Moore DM Limited,R2004-CUL112,R & M of Build Programmed,11/03/2016,2134.00
http://statistics.data.gov.uk/id/local-authority-district/23UB,Cheltenham Borough Council,Repairs and Maintenance,14043223,24883,Morgan Lambert Limited,R2040-HRA100,R & M of Build Central Heating,04/03/2016,616.00
http://statistics.data.gov.uk/id/local-authority-district/23UB,Cheltenham Borough Council,Repairs and Maintenance,14043429,25145,Morgan Lambert Limited,R2040-HRA100,R & M of Build Central Heating,18/03/2016,748.00
http://statistics.data.gov.uk/id/local-authority-district/23UB,Cheltenham Borough Council,Robert Harvey House Lift,14043431,BRI MO 16 00 27,Movveo Limited,C1107-CAH023,Building Works,18/03/2016,955.00
http://statistics.data.gov.uk/id/local-authority-district/23UB,Cheltenham Borough Council,"Cemetery, Crematorium and Churchyards",14043754,90316,Mr J Sureda,R4401-CCM001,Services - Fees and Charges,31/03/2016,806.62
http://statistics.data.gov.uk/id/local-authority-district/23UB,Cheltenham Borough Council,"Cemetery, Crematorium and Churchyards",14043410,290216,Mr J Sureda,R4401-CCM001,Services - Fees and Charges,18/03/2016,754.58
http://statistics.data.gov.uk/id/local-authority-district/23UB,Cheltenham Borough Council,Sports & Open Spaces Operations,14042520,016/01,Mumkin Operational Services,R4003-OPS002,Tools & Equipment - R & M,04/03/2016,766.50
http://statistics.data.gov.uk/id/local-authority-district/23UB,Cheltenham Borough Council,Sports & Open Spaces Operations,14043402,16/02,Mumkin Operational Services,R4003-OPS002,Tools & Equipment - R & M,18/03/2016,1226.50
http://statistics.data.gov.uk/id/local-authority-district/23UB,Cheltenham Borough Council,Trees,14043039,1223,N C Eldridge T/A Eldridge Tree Services,R2070-PLP006,Tree Work,04/03/2016,800.00
http://statistics.data.gov.uk/id/local-authority-district/23UB,Cheltenham Borough Council,Supervision and Management,14043396,180,Nature First Limited,R5013-HRA110,Minor Neighbourhood Works - St Paul's Areas,31/03/2016,600.00
http://statistics.data.gov.uk/id/local-authority-district/23UB,Cheltenham Borough Council,Royal Well Bus Node,14043113,2319,Nick Bevan Consulting Limited,R2004-PUT101,R & M of Build Programmed,04/03/2016,700.00
http://statistics.data.gov.uk/id/local-authority-district/23UB,Cheltenham Borough Council,External Improvements,14042934,9361,NKS Contracts (Central) Limited,C1107-CAH003,Building Works,04/03/2016,8445.80
http://statistics.data.gov.uk/id/local-authority-district/23UB,Cheltenham Borough Council,Internal Improvements,14043065,9394,NKS Contracts (Central) Limited,C1107-CAH004,Building Works,04/03/2016,38773.74
http://statistics.data.gov.uk/id/local-authority-district/23UB,Cheltenham Borough Council,Parks & Gardens Operations,14043762,FCP154438,Nova-Flore Sarl,R4000-OPS001,Equipment Purchase,31/03/2016,776.53
http://statistics.data.gov.uk/id/local-authority-district/23UB,Cheltenham Borough Council,Parks & Gardens Operations,14043762,FCP154438,Nova-Flore Sarl,R4010-OPS001,Materials - Other Materials,31/03/2016,1642.03
http://statistics.data.gov.uk/id/local-authority-district/23UB,Cheltenham Borough Council,Council Tax Leaflet,14043434,8425,Now Media Limited,R4300-LTC003,Printing - Services,18/03/2016,27725.00
http://statistics.data.gov.uk/id/local-authority-district/23UB,Cheltenham Borough Council,CCTV,14043734,623348,OpenView Security Solutions Limited,R4003-CCT001,Tools & Equipment - R & M,31/03/2016,1419.17
http://statistics.data.gov.uk/id/local-authority-district/23UB,Cheltenham Borough Council,Repairs and Maintenance,14043569,O0393567,Orbis Protect Limited,R2012-HRA100,R & M of Build Standby and Call Out,31/03/2016,1047.03
http://statistics.data.gov.uk/id/local-authority-district/23UB,Cheltenham Borough Council,Joint Core Strategy,14043570,404223,Ove Arup & Partners Limited,R4401-PLP101,Services - Fees and Charges,24/03/2016,3462.00
http://statistics.data.gov.uk/id/local-authority-district/23UB,Cheltenham Borough Council,Joint Core Strategy,14043571,404681,Ove Arup & Partners Limited,R4401-PLP101,Services - Fees and Charges,24/03/2016,3940.00
http://statistics.data.gov.uk/id/local-authority-district/23UB,Cheltenham Borough Council,Structural / Damp Works,14042590,JAN330/PPC/RCS,P C Moleing Services Limited,C1107-CAH016,Building Works,04/03/2016,535.00
http://statistics.data.gov.uk/id/local-authority-district/23UB,Cheltenham Borough Council,Car Parks - Off Street Operations,14042929,UK85116,Parkeon Limited,R4012-CPK001,Purchase/Repair Equipment for Hire,04/03/2016,3703.00
http://statistics.data.gov.uk/id/local-authority-district/23UB,Cheltenham Borough Council,Car Parks - Off Street Operations,14043716,UK86199,Parkeon Limited,R4401-CPK001,Services - Fees and Charges,31/03/2016,1950.76
http://statistics.data.gov.uk/id/local-authority-district/23UB,Cheltenham Borough Council,Joint Core Strategy,14043356,126589 JBK,Peter Brett Associates LLP,R4400-PLP101,Services - Professional Fees,18/03/2016,3428.35
http://statistics.data.gov.uk/id/local-authority-district/23UB,Cheltenham Borough Council,Sports & Open Spaces Operations,14043399,21289,Pictorial Meadows Limited,R2076-OPS002,Grounds Maintenance - Non Contract,31/03/2016,2316.64
http://statistics.data.gov.uk/id/local-authority-district/23UB,Cheltenham Borough Council,Cemetery & Crematorium Repairs & Maintenance,14043701,3316,PJ Combustion Solutions Limited,R2083-CCM111,R&M of Build - Routine,31/03/2016,3142.00
http://statistics.data.gov.uk/id/local-authority-district/23UB,Cheltenham Borough Council,Disabled Facility Grants,14043456,15/00104/DM00C,Premiere Healthcare Limited,C5000-CAP221,Grants,18/03/2016,1349.00
http://statistics.data.gov.uk/id/local-authority-district/23UB,Cheltenham Borough Council,Cheltenham Depot,14042877,18898,Pro-Door Limited,R2083-ADB103,R&M of Build - Routine,04/03/2016,800.00
http://statistics.data.gov.uk/id/local-authority-district/23UB,Cheltenham Borough Council,Development costs - Garage Sites 2b,14043419,11018,Quattro Design Architects Limited,C1107-CAH054,Building Works,18/03/2016,675.00
http://statistics.data.gov.uk/id/local-authority-district/23UB,Cheltenham Borough Council,Printing Services,14043378,100465050,Ricoh UK Limited,R4305-SUP022,Photocopier Charges - Usage,18/03/2016,8551.68
http://statistics.data.gov.uk/id/local-authority-district/23UB,Cheltenham Borough Council,Printing Services,14043625,100472646,Ricoh UK Limited,R4304-SUP022,Photocopier Operating Lease,31/03/2016,897.77
http://statistics.data.gov.uk/id/local-authority-district/23UB,Cheltenham Borough Council,Printing Services,14043703,56901645,Ricoh UK Limited,R4300-SUP022,Printing - Services,31/03/2016,1455.30
http://statistics.data.gov.uk/id/local-authority-district/23UB,Cheltenham Borough Council,Parks & Gardens Operations,14043420,RSIN0167566,Rigby Taylor Limited,R2706-OPS001,Cleaning - reactive,31/03/2016,782.05
http://statistics.data.gov.uk/id/local-authority-district/23UB,Cheltenham Borough Council,Town Hall Chairs,14042985,550042,Robert Hall Business Equipment Limited,C4001-CAP124,Furniture,11/03/2016,67859.15
http://statistics.data.gov.uk/id/local-authority-district/23UB,Cheltenham Borough Council,Development Control - Applications,14043759,184706,Rotadex Systems Limited,R4308-DEV001,Stationery,31/03/2016,1990.00
http://statistics.data.gov.uk/id/local-authority-district/23UB,Cheltenham Borough Council,Individual Electoral Registration,14042871,9051434121,Royal Mail,R4521-ELE010,Postages - franking machine,04/03/2016,911.23
http://statistics.data.gov.uk/id/local-authority-district/23UB,Cheltenham Borough Council,Green Waste,14042984,9051526561,Royal Mail,R4521-RYC002,Postages - franking machine,04/03/2016,659.07
http://statistics.data.gov.uk/id/local-authority-district/23UB,Cheltenham Borough Council,Individual Electoral Registration,14042984,9051526561,Royal Mail,R4521-ELE010,Postages - franking machine,04/03/2016,563.40
http://statistics.data.gov.uk/id/local-authority-district/23UB,Cheltenham Borough Council,Council Tax Collection,14042984,9051526561,Royal Mail,R4521-LTC001,Postages - franking machine,04/03/2016,869.17
http://statistics.data.gov.uk/id/local-authority-district/23UB,Cheltenham Borough Council,Council Tax Collection,14042983,9051566462,Royal Mail,R4521-LTC001,Postages - franking machine,04/03/2016,527.62
http://statistics.data.gov.uk/id/local-authority-district/23UB,Cheltenham Borough Council,Individual Electoral Registration,14043336,9051609990,Royal Mail,R4521-ELE010,Postages - franking machine,18/03/2016,775.90
http://statistics.data.gov.uk/id/local-authority-district/23UB,Cheltenham Borough Council,Council Tax Collection,14043389,9051708109,Royal Mail,R4521-LTC001,Postages - franking machine,18/03/2016,679.13
http://statistics.data.gov.uk/id/local-authority-district/23UB,Cheltenham Borough Council,Housing Benefit Administration,14043435,9051753111,Royal Mail,R4521-HBA001,Postages - franking machine,18/03/2016,2079.29
http://statistics.data.gov.uk/id/local-authority-district/23UB,Cheltenham Borough Council,Green Waste,14043435,9051753111,Royal Mail,R4521-RYC002,Postages - franking machine,18/03/2016,504.02
http://statistics.data.gov.uk/id/local-authority-district/23UB,Cheltenham Borough Council,Parks & Gardens Operations,14029632,33131,R-Tech Welding Equipment Limited,R4010-OPS001,Materials - Other Materials,07/03/2016,825.00
http://statistics.data.gov.uk/id/local-authority-district/23UB,Cheltenham Borough Council,Sandford Lido car park,14043438,Sandford Lido Feb 16,Sandford Parks Lido (Trading) Limited,R5003-CPK103,TPP - Agency Fees,18/03/2016,23076.42
http://statistics.data.gov.uk/id/local-authority-district/23UB,Cheltenham Borough Council,Sandford Lido car park,14043438,Sandford Lido Feb 16,Sandford Parks Lido (Trading) Limited,R5003-CPK103,TPP - Agency Fees,18/03/2016,-1683.33
http://statistics.data.gov.uk/id/local-authority-district/23UB,Cheltenham Borough Council,"Rents, Rates, Taxes and Other Charges",14043483,6400925473 100216,Severn Trent Water,R2400-HRA120,Water Services - Unmetered,24/03/2016,833.32
http://statistics.data.gov.uk/id/local-authority-district/23UB,Cheltenham Borough Council,"Rents, Rates, Taxes and Other Charges",14043499,6401427367,Severn Trent Water,R2400-HRA120,Water Services - Unmetered,24/03/2016,1470.68
http://statistics.data.gov.uk/id/local-authority-district/23UB,Cheltenham Borough Council,"Rents, Rates, Taxes and Other Charges",14043482,6401427376 100216,Severn Trent Water,R2400-HRA120,Water Services - Unmetered,24/03/2016,1159.58
http://statistics.data.gov.uk/id/local-authority-district/23UB,Cheltenham Borough Council,"Rents, Rates, Taxes and Other Charges",14043500,6401727385 040316,Severn Trent Water,R2400-HRA120,Water Services - Unmetered,24/03/2016,657.21
http://statistics.data.gov.uk/id/local-authority-district/23UB,Cheltenham Borough Council,"Rents, Rates, Taxes and Other Charges",14043484,6503531176 110216,Severn Trent Water,R2400-HRA120,Water Services - Unmetered,24/03/2016,607.74
http://statistics.data.gov.uk/id/local-authority-district/23UB,Cheltenham Borough Council,Recreation Centre Repairs & Maintenance,14043386,986072824,Severn Trent Water,R2402-REC111,Sewerage and Environmental Services,18/03/2016,1691.00
http://statistics.data.gov.uk/id/local-authority-district/23UB,Cheltenham Borough Council,Car Parks - Off Street Operations,14043433,77639,Signcraft Limited,R2072-CPK001,Signs and Notices,18/03/2016,615.00
http://statistics.data.gov.uk/id/local-authority-district/23UB,Cheltenham Borough Council,Joint Core Strategy,14043491,72832 170216,Simon Bird QC,R4400-PLP101,Services - Professional Fees,24/03/2016,20450.00
http://statistics.data.gov.uk/id/local-authority-district/23UB,Cheltenham Borough Council,Parks & Gardens Operations,14043778,473044,Smith & Sons (Bletchington) Limited,R2706-OPS001,Cleaning - reactive,31/03/2016,665.00
http://statistics.data.gov.uk/id/local-authority-district/23UB,Cheltenham Borough Council,Soil Stacks,14043071,11792,Snape Contracting Limited (Snapecall),C1107-CAH024,Building Works,04/03/2016,19809.23
http://statistics.data.gov.uk/id/local-authority-district/23UB,Cheltenham Borough Council,Bulking Facility,14042851,115965,South Wales Wood Recycling Ltd,R5005-RYC008,TPP - Minor Contract Fees,18/03/2016,1095.60
http://statistics.data.gov.uk/id/local-authority-district/23UB,Cheltenham Borough Council,Bulking Facility,14042850,116027,South Wales Wood Recycling Ltd,R5005-RYC008,TPP - Minor Contract Fees,18/03/2016,2035.00
http://statistics.data.gov.uk/id/local-authority-district/23UB,Cheltenham Borough Council,Bulking Facility,14043417,116218,South Wales Wood Recycling Ltd,R5005-RYC008,TPP - Minor Contract Fees,18/03/2016,994.40
http://statistics.data.gov.uk/id/local-authority-district/23UB,Cheltenham Borough Council,Bulking Facility,14043416,116283,South Wales Wood Recycling Ltd,R5008-RYC008,Sub Contract Materials,18/03/2016,1914.00
http://statistics.data.gov.uk/id/local-authority-district/23UB,Cheltenham Borough Council,Bulking Facility,14043650,116358,South Wales Wood Recycling Ltd,R5005-RYC008,TPP - Minor Contract Fees,31/03/2016,1903.00
http://statistics.data.gov.uk/id/local-authority-district/23UB,Cheltenham Borough Council,Bulking Facility,14043649,116418,South Wales Wood Recycling Ltd,R5005-RYC008,TPP - Minor Contract Fees,31/03/2016,1040.60
http://statistics.data.gov.uk/id/local-authority-district/23UB,Cheltenham Borough Council,Public Art,14043164,GIVING GRANT 1,ST Pauls Road Area Residents Association (SPRA),R4400-PUB101,Services - Professional Fees,04/03/2016,2000.00
http://statistics.data.gov.uk/id/local-authority-district/23UB,Cheltenham Borough Council,Recycling Collection Schemes,14042427,22877,Straight Plc,R4000-RYC006,Equipment Purchase,04/03/2016,10365.00
http://statistics.data.gov.uk/id/local-authority-district/23UB,Cheltenham Borough Council,Household Waste,14042607,23048,Straight Plc,R4000-WST001,Equipment Purchase,18/03/2016,15477.00
http://statistics.data.gov.uk/id/local-authority-district/23UB,Cheltenham Borough Council,Recycling Collection Schemes,14042799,23134,Straight Plc,R4000-RYC006,Equipment Purchase,18/03/2016,6428.80
http://statistics.data.gov.uk/id/local-authority-district/23UB,Cheltenham Borough Council,Recycling Collection Schemes,14043046,23366,Straight Plc,R4000-RYC006,Equipment Purchase,18/03/2016,2018.52
http://statistics.data.gov.uk/id/local-authority-district/23UB,Cheltenham Borough Council,Recycling Collection Schemes,14043411,23534,Straight Plc,R4000-RYC006,Equipment Purchase,18/03/2016,8737.50
http://statistics.data.gov.uk/id/local-authority-district/23UB,Cheltenham Borough Council,Parks & Gardens Operations,14043745,24957,Streetmaster (South Wales) Limited,R2500-OPS001,Fixtures and Fittings - Purchases,31/03/2016,796.00
http://statistics.data.gov.uk/id/local-authority-district/23UB,Cheltenham Borough Council,Council Tax Leaflet,14043634,COUNCIL TAX LEAFLET CREDIT DISTRIBUTION,Stroud District Council,R9100-LTC003,Contributions - County Council,24/03/2016,5097.61
http://statistics.data.gov.uk/id/local-authority-district/23UB,Cheltenham Borough Council,Land & Property presale costs,14043729,7070711,Sweett (UK) Limited,C1005-CAP401,Surveyors Fees,31/03/2016,9300.00
http://statistics.data.gov.uk/id/local-authority-district/23UB,Cheltenham Borough Council,Income and Expenditure on Investment Properties and Changes in Their Fair Value,14043292,005004 inv,System Six Design & Build,R2008-FIE040,R & M of Build - Reactive Repairs,18/03/2016,750.00
http://statistics.data.gov.uk/id/local-authority-district/23UB,Cheltenham Borough Council,Cheltenham Municipal Offices,14043318,5007,System Six Design & Build,R2500-ADB101,Fixtures and Fittings - Purchases,18/03/2016,897.00
http://statistics.data.gov.uk/id/local-authority-district/23UB,Cheltenham Borough Council,Income and Expenditure on Investment Properties and Changes in Their Fair Value,14043321,5036,System Six Design & Build,R2500-FIE040,Fixtures and Fittings - Purchases,18/03/2016,550.00
http://statistics.data.gov.uk/id/local-authority-district/23UB,Cheltenham Borough Council,"Cemetery, Crematorium and Churchyards",14043367,14001,Teleshore UK Limited,R4401-CCM001,Services - Fees and Charges,18/03/2016,2381.00
http://statistics.data.gov.uk/id/local-authority-district/23UB,Cheltenham Borough Council,Joint Core Strategy,14043377,DEBT104608,Tewkesbury Borough Council,R4400-PLP101,Services - Professional Fees,18/03/2016,10500.00
http://statistics.data.gov.uk/id/local-authority-district/23UB,Cheltenham Borough Council,Joint Core Strategy,14043376,DEBT104609,Tewkesbury Borough Council,R4400-PLP101,Services - Professional Fees,18/03/2016,3500.00
http://statistics.data.gov.uk/id/local-authority-district/23UB,Cheltenham Borough Council,Cultural - Service Management and Support Services,14042652,7001682X,The Cheltenham Trust,R5001-CSM001,TPP - Major External Contractors,04/03/2016,80636.00
http://statistics.data.gov.uk/id/local-authority-district/23UB,Cheltenham Borough Council,Cultural - Service Management and Support Services,14043412,70018190,The Cheltenham Trust,R5001-CSM001,TPP - Major External Contractors,18/03/2016,80636.00
http://statistics.data.gov.uk/id/local-authority-district/23UB,Cheltenham Borough Council,Economic Development,14043638,PROMOTING CHELTENHAM FUND,The Cheltenham Trust,R6280-ECD001,Grants,31/03/2016,5114.00
http://statistics.data.gov.uk/id/local-authority-district/23UB,Cheltenham Borough Council,General Fund Balance Sheet,14043248,CHILDCARE VOUCHERS DEDUCTIONS FROM PAYROLL,The Midcounties Co-operative,B6170-BAL100,Short Term Revenue Creditors (incl RIA) - Other entities and individuals,18/03/2016,3410.00
http://statistics.data.gov.uk/id/local-authority-district/23UB,Cheltenham Borough Council,Community Welfare Grants,14043474,3036,The Rock,R6280-GBD001,Grants,24/03/2016,539.58
http://statistics.data.gov.uk/id/local-authority-district/23UB,Cheltenham Borough Council,Adaptations for the Disabled (CBC),14043640,REDACTED,The Surveying Practice - Client Account,C1107-CAH028,Building Works,24/03/2016,21835.90
http://statistics.data.gov.uk/id/local-authority-district/23UB,Cheltenham Borough Council,Adaptations for the Disabled (CBC),14043166,REDACTED,The Surveying Practice - Client Account,C1107-CAH028,Building Works,04/03/2016,1237.52
http://statistics.data.gov.uk/id/local-authority-district/23UB,Cheltenham Borough Council,Adaptations for the Disabled (CBC),14043162,REDACTED,The Surveying Practice - Client Account,C1107-CAH028,Building Works,04/03/2016,6460.58
http://statistics.data.gov.uk/id/local-authority-district/23UB,Cheltenham Borough Council,Adaptations for the Disabled (CBC),14043342,REDACTED,The Surveying Practice - Client Account,C1107-CAH028,Building Works,18/03/2016,7791.03
http://statistics.data.gov.uk/id/local-authority-district/23UB,Cheltenham Borough Council,Adaptations for the Disabled (CBC),14043453,REDACTED,The Surveying Practice - Client Account,C1107-CAH028,Building Works,18/03/2016,23539.15
http://statistics.data.gov.uk/id/local-authority-district/23UB,Cheltenham Borough Council,Disabled Facility Grants,14043341,REDACTED,The Surveying Practice - Client Account,C5000-CAP221,Grants,18/03/2016,6335.42
http://statistics.data.gov.uk/id/local-authority-district/23UB,Cheltenham Borough Council,Disabled Facility Grants,14043471,REDACTED,The Surveying Practice - Client Account,C5000-CAP221,Grants,24/03/2016,8879.06
http://statistics.data.gov.uk/id/local-authority-district/23UB,Cheltenham Borough Council,Adaptations for the Disabled (CBC),14043470,REDACTED,The Surveying Practice - Client Account,C1107-CAH028,Building Works,24/03/2016,7903.78
http://statistics.data.gov.uk/id/local-authority-district/23UB,Cheltenham Borough Council,Adaptations for the Disabled (CBC),14043451,REDACTED,The Surveying Practice - Client Account,C1107-CAH028,Building Works,18/03/2016,8405.51
http://statistics.data.gov.uk/id/local-authority-district/23UB,Cheltenham Borough Council,Disabled Facility Grants,14043472,REDACTED,The Surveying Practice - Client Account,C5000-CAP221,Grants,24/03/2016,9538.65
http://statistics.data.gov.uk/id/local-authority-district/23UB,Cheltenham Borough Council,Disabled Facility Grants,14043165,REDACTED,The Surveying Practice - Client Account,C5000-CAP221,Grants,04/03/2016,8492.33
http://statistics.data.gov.uk/id/local-authority-district/23UB,Cheltenham Borough Council,Civic Expenses,14043008,I205821,Thomas Fattorini Limited,R4401-DRM009,Services - Fees and Charges,18/03/2016,4934.60
http://statistics.data.gov.uk/id/local-authority-district/23UB,Cheltenham Borough Council,Repairs and Maintenance,14041398,INV62102,Triangle Lift Services Limited,R2041-HRA100,R & M of Build Lifts,04/03/2016,3518.75
http://statistics.data.gov.uk/id/local-authority-district/23UB,Cheltenham Borough Council,Community Alarms,14043070,3IN/10275453,Tunstall Healthcare (UK) Limited,R4000-SPP002,Equipment Purchase,04/03/2016,1175.00
http://statistics.data.gov.uk/id/local-authority-district/23UB,Cheltenham Borough Council,Household Waste,14043208,60007970,Ubico Limited,R5001-WST001,TPP - Major External Contractors,11/03/2016,100665.00
http://statistics.data.gov.uk/id/local-authority-district/23UB,Cheltenham Borough Council,Trade Waste,14043208,60007970,Ubico Limited,R5001-TRW001,TPP - Major External Contractors,11/03/2016,43815.00
http://statistics.data.gov.uk/id/local-authority-district/23UB,Cheltenham Borough Council,Recycling Centres,14043208,60007970,Ubico Limited,R5001-RYC004,TPP - Major External Contractors,11/03/2016,43681.67
http://statistics.data.gov.uk/id/local-authority-district/23UB,Cheltenham Borough Council,Parks & Gardens Operations,14043208,60007970,Ubico Limited,R5001-OPS001,TPP - Major External Contractors,11/03/2016,43088.33
http://statistics.data.gov.uk/id/local-authority-district/23UB,Cheltenham Borough Council,Highways Agency Verges & Trees,14043208,60007970,Ubico Limited,R5001-ESR001,TPP - Major External Contractors,11/03/2016,23720.83
http://statistics.data.gov.uk/id/local-authority-district/23UB,Cheltenham Borough Council,Sports & Open Spaces Operations,14043208,60007970,Ubico Limited,R5001-OPS002,TPP - Major External Contractors,11/03/2016,49405.83
http://statistics.data.gov.uk/id/local-authority-district/23UB,Cheltenham Borough Council,Arle Road Nursery Operations,14043208,60007970,Ubico Limited,R5001-OPS101,TPP - Major External Contractors,11/03/2016,14624.17
http://statistics.data.gov.uk/id/local-authority-district/23UB,Cheltenham Borough Council,Street Cleaning,14043208,60007970,Ubico Limited,R5001-STC001,TPP - Major External Contractors,11/03/2016,76410.00
http://statistics.data.gov.uk/id/local-authority-district/23UB,Cheltenham Borough Council,Public Conveniences,14043208,60007970,Ubico Limited,R5001-REG019,TPP - Major External Contractors,11/03/2016,6239.17
http://statistics.data.gov.uk/id/local-authority-district/23UB,Cheltenham Borough Council,Supervision and Management,14043208,60007970,Ubico Limited,R2071-HRA110,Open Spaces and Grassed Areas,11/03/2016,27755.67
http://statistics.data.gov.uk/id/local-authority-district/23UB,Cheltenham Borough Council,Bring Sites,14043208,60007970,Ubico Limited,R5001-RYC005,TPP - Major External Contractors,11/03/2016,11303.33
http://statistics.data.gov.uk/id/local-authority-district/23UB,Cheltenham Borough Council,Recycling Collection Schemes,14043208,60007970,Ubico Limited,R5001-RYC006,TPP - Major External Contractors,11/03/2016,115078.33
http://statistics.data.gov.uk/id/local-authority-district/23UB,Cheltenham Borough Council,Green Waste,14043208,60007970,Ubico Limited,R5001-RYC002,TPP - Major External Contractors,11/03/2016,25513.33
http://statistics.data.gov.uk/id/local-authority-district/23UB,Cheltenham Borough Council,Bulking Facility,14043365,60008038,Ubico Limited,R5001-RYC008,TPP - Major External Contractors,18/03/2016,117495.00
http://statistics.data.gov.uk/id/local-authority-district/23UB,Cheltenham Borough Council,GO ICT Centre of Excellence,14043187,2000000146,Unit4 Business Software,R4539-SUP101,IT - Consultancy,11/03/2016,1100.00
http://statistics.data.gov.uk/id/local-authority-district/23UB,Cheltenham Borough Council,GO ICT Centre of Excellence,14043406,2000000238,Unit4 Business Software,R4539-SUP101,IT - Consultancy,18/03/2016,17125.00
http://statistics.data.gov.uk/id/local-authority-district/23UB,Cheltenham Borough Council,Car Parks - Off Street Operations,14042460,CHL00237 080116,Verrus (UK) Limited (Pay By Phone),R4401-CPK001,Services - Fees and Charges,18/03/2016,2472.99
http://statistics.data.gov.uk/id/local-authority-district/23UB,Cheltenham Borough Council,Car Parks - Off Street Operations,14043490,CHL00242,Verrus (UK) Limited (Pay By Phone),R4401-CPK001,Services - Fees and Charges,31/03/2016,2469.42
http://statistics.data.gov.uk/id/local-authority-district/23UB,Cheltenham Borough Council,Bulky Household Waste,14043221,16-Mar,Vision 21,R4401-WST004,Services - Fees and Charges,24/03/2016,3343.75
http://statistics.data.gov.uk/id/local-authority-district/23UB,Cheltenham Borough Council,Ubico Intercompany Account,14043726,IZ52890,Vodafone Limited,R4500-HLD102,Comms - Purchase of Equipment,31/03/2016,690.00
http://statistics.data.gov.uk/id/local-authority-district/23UB,Cheltenham Borough Council,2020 Vision,14043475,33118696,West Oxfordshire District Council,R4400-COR102,Services - Professional Fees,31/03/2016,13181.00
http://statistics.data.gov.uk/id/local-authority-district/23UB,Cheltenham Borough Council,2020 Vision,14043475,33118696,West Oxfordshire District Council,R4400-COR102,Services - Professional Fees,31/03/2016,10434.62
http://statistics.data.gov.uk/id/local-authority-district/23UB,Cheltenham Borough Council,2020 Vision,14043475,33118696,West Oxfordshire District Council,R4400-COR102,Services - Professional Fees,31/03/2016,9897.93
http://statistics.data.gov.uk/id/local-authority-district/23UB,Cheltenham Borough Council,2020 Vision,14043475,33118696,West Oxfordshire District Council,R4400-COR102,Services - Professional Fees,31/03/2016,5433.76
http://statistics.data.gov.uk/id/local-authority-district/23UB,Cheltenham Borough Council,2020 Vision,14043475,33118696,West Oxfordshire District Council,R4400-COR102,Services - Professional Fees,31/03/2016,7665.00
http://statistics.data.gov.uk/id/local-authority-district/23UB,Cheltenham Borough Council,2020 Vision,14043475,33118696,West Oxfordshire District Council,R4400-COR102,Services - Professional Fees,31/03/2016,14000.00
http://statistics.data.gov.uk/id/local-authority-district/23UB,Cheltenham Borough Council,"Cemetery, Crematorium and Churchyards",14043414,167,Woodcraft UK,R4011-CCM001,Goods For Resale,18/03/2016,668.00
http://statistics.data.gov.uk/id/local-authority-district/23UB,Cheltenham Borough Council,"Cemetery, Crematorium and Churchyards",14043415,168,Woodcraft UK,R4011-CCM001,Goods For Resale,18/03/2016,612.00
http://statistics.data.gov.uk/id/local-authority-district/23UB,Cheltenham Borough Council,Community Welfare Grants,14043450,Albemark 110316,Albemarle Orchard Garden,R6280-GBD001,Grants,31/03/2016,1095.00
http://statistics.data.gov.uk/id/local-authority-district/23UB,Cheltenham Borough Council,Community Welfare Grants,14043452,Big Local Trust 110316,Big Local Trust (BIG),R6280-GBD001,Grants,24/03/2016,20342.57
http://statistics.data.gov.uk/id/local-authority-district/23UB,Cheltenham Borough Council,Income and Expenditure on Investment Properties and Changes in Their Fair Value,14043437,DH/RD/649170,BPE Solicitors LLP,R4400-FIE040,Services - Professional Fees,24/03/2016,900.00
http://statistics.data.gov.uk/id/local-authority-district/23UB,Cheltenham Borough Council,Building Control - Fee Earning Work,14043473,ACCOM & TRAVEL EXPENSES 01.12.15 - 15.02.16,REDACTED,R1399-BUC001,Other employee expenses,24/03/2016,1265.44
http://statistics.data.gov.uk/id/local-authority-district/23UB,Cheltenham Borough Council,Rent Control,14043333,Rent Refund (REDACTED),REDACTED,R9910-HRA900,Refund of Overpiad Rent,11/03/2016,1311.15
http://statistics.data.gov.uk/id/local-authority-district/23UB,Cheltenham Borough Council,Rent Control,14043171,008939 00 4,REDACTED,R9910-HRA900,Refund of Overpiad Rent,04/03/2016,3024.38
http://statistics.data.gov.uk/id/local-authority-district/23UB,Cheltenham Borough Council,Rent Control,14043467,REFUND OF RENT REQUEST REDACTED,REDACTED,R9910-HRA900,Refund of Overpiad Rent,24/03/2016,502.42
http://statistics.data.gov.uk/id/local-authority-district/23UB,Cheltenham Borough Council,Rent Control,14043641,RENT REFUND (REDACTED),REDACTED,R9910-HRA900,Refund of Overpiad Rent,24/03/2016,2934.42
http://statistics.data.gov.uk/id/local-authority-district/23UB,Cheltenham Borough Council,Rent Control,14043335,Rent Refund (REDACTED),REDACTED,R9910-HRA900,Refund of Overpiad Rent,11/03/2016,1094.94
http://statistics.data.gov.uk/id/local-authority-district/23UB,Cheltenham Borough Council,Rent Control,14043463,REFUND OF RENT REQUEST REDACTED,REDACTED,R9910-HRA900,Refund of Overpiad Rent,24/03/2016,550.00
http://statistics.data.gov.uk/id/local-authority-district/23UB,Cheltenham Borough Council,Supervision and Management,14043665,89335,Mr Nicholas Grundy QC,R4420-HRA110,Legal Expenses And Court Costs,31/03/2016,600.00
http://statistics.data.gov.uk/id/local-authority-district/23UB,Cheltenham Borough Council,Community Welfare Grants,14043459,Oakley 110316,Oakley Neighbourhood Project,R6280-GBD001,Grants,24/03/2016,1333.76
http://statistics.data.gov.uk/id/local-authority-district/23UB,Cheltenham Borough Council,Community Welfare Grants,14043226,HIE Relate,Relate Gloucestershire & Swindon,R6280-GBD001,Grants,11/03/2016,869.00
http://statistics.data.gov.uk/id/local-authority-district/23UB,Cheltenham Borough Council,New Heating Installations,14043304,REDACTED,Wales & West Utilities Ltd,C1107-CAH009,Building Works,11/03/2016,1827.00
http://statistics.data.gov.uk/id/local-authority-district/23UB,Cheltenham Borough Council,Repairs and Maintenance,10017822,,CCTV REPORT & CLEAR DRAIN AT REAR - BULLINGHAM COURT,R2008-HRA100,R & M of Build - Reactive Repairs,08/03/2016,565.00
http://statistics.data.gov.uk/id/local-authority-district/23UB,Cheltenham Borough Council,Phase 3 Development,10017908,direct debit,Persimmon ,C1001-CAH039,Acquisition Of Buildings,15/03/2016,210000.00
http://statistics.data.gov.uk/id/local-authority-district/23UB,Cheltenham Borough Council,Car Parks - Off Street Operations,10018195,direct debit,LLOYDS BANK,R4428-CPK001,Services - credit card charges,21/03/2016,507.78
http://statistics.data.gov.uk/id/local-authority-district/23UB,Cheltenham Borough Council,Cheltenham Depot,10018049,direct debit,SEVERN TRENT WATER ,R2401-ADB103,Water Services - Metered,24/03/2016,648.99
http://statistics.data.gov.uk/id/local-authority-district/23UB,Cheltenham Borough Council,Car Parks - Off Street Operations,10018085,direct debit,SEVERN TRENT WATER ,R2402-CPK001,Sewerage and Environmental Services,24/03/2016,660.04
http://statistics.data.gov.uk/id/local-authority-district/23UB,Cheltenham Borough Council,"Cemetery, Crematorium and Churchyards",10017953,direct debit,SOUTHERN ELECTRIC ,R2100-CCM001,Electricity,04/03/2016,668.17
http://statistics.data.gov.uk/id/local-authority-district/23UB,Cheltenham Borough Council,Car Parks - Off Street Operations,10017953,direct debit,SOUTHERN ELECTRIC ,R2100-CPK001,Electricity,04/03/2016,684.38
http://statistics.data.gov.uk/id/local-authority-district/23UB,Cheltenham Borough Council,Supervision and Management,10018053,direct debit,GAS,R2101-HRA110,Gas,23/03/2016,687.40
http://statistics.data.gov.uk/id/local-authority-district/23UB,Cheltenham Borough Council,Recreation Centre Repairs & Maintenance,10018053,direct debit,GAS,R2101-REC111,Gas,23/03/2016,725.37
http://statistics.data.gov.uk/id/local-authority-district/23UB,Cheltenham Borough Council,Pittville Pump Room Repairs & Maintenance,10017953,direct debit,SOUTHERN ELECTRIC ,R2100-CUL113,Electricity,04/03/2016,749.42
http://statistics.data.gov.uk/id/local-authority-district/23UB,Cheltenham Borough Council,Supervision and Management,10017829,direct debit,GAS,R2101-HRA110,Gas,22/02/2016,763.93
http://statistics.data.gov.uk/id/local-authority-district/23UB,Cheltenham Borough Council,Pittville Pump Room Repairs & Maintenance,10018053,direct debit,GAS,R2101-CUL113,Gas,23/03/2016,795.82
http://statistics.data.gov.uk/id/local-authority-district/23UB,Cheltenham Borough Council,Telephones,10017843,direct debit,VIRGIN MEDIA ,R4515-SUP006,Comms - Telephone Call Charges,01/03/2016,818.17
http://statistics.data.gov.uk/id/local-authority-district/23UB,Cheltenham Borough Council,Supervision and Management,10018053,direct debit,GAS,R2101-HRA110,Gas,23/03/2016,879.72
http://statistics.data.gov.uk/id/local-authority-district/23UB,Cheltenham Borough Council,Pittville Pump Room Repairs & Maintenance,10017829,direct debit,GAS,R2101-CUL113,Gas,22/02/2016,883.77
http://statistics.data.gov.uk/id/local-authority-district/23UB,Cheltenham Borough Council,Supervision and Management,10018053,direct debit,GAS,R2101-HRA110,Gas,23/03/2016,928.55
http://statistics.data.gov.uk/id/local-authority-district/23UB,Cheltenham Borough Council,Pittville Pump Room Repairs & Maintenance,10018085,direct debit,SEVERN TRENT WATER  ,R2402-CUL113,Sewerage and Environmental Services,24/03/2016,943.13
http://statistics.data.gov.uk/id/local-authority-district/23UB,Cheltenham Borough Council,Supervision and Management,10018053,direct debit,GAS,R2101-HRA110,Gas,23/03/2016,977.47
http://statistics.data.gov.uk/id/local-authority-district/23UB,Cheltenham Borough Council,Supervision and Management,10017829,direct debit,GAS,R2101-HRA110,Gas,22/02/2016,979.52
http://statistics.data.gov.uk/id/local-authority-district/23UB,Cheltenham Borough Council,Treasury Management,10017812,direct debit,LLOYDS BANK,R4428-COR006,Services - credit card charges,12/02/2016,991.13
http://statistics.data.gov.uk/id/local-authority-district/23UB,Cheltenham Borough Council,Car Parks - Off Street Operations,10017953,direct debit,SOUTHERN ELECTRIC ,R2100-CPK001,Electricity,04/03/2016,1022.37
http://statistics.data.gov.uk/id/local-authority-district/23UB,Cheltenham Borough Council,Supervision and Management,10017829,direct debit,GAS,R2101-HRA110,Gas,22/02/2016,1031.86
http://statistics.data.gov.uk/id/local-authority-district/23UB,Cheltenham Borough Council,Art Gallery & Museum Operations,10017953,direct debit,SOUTHERN ELECTRIC ,R2100-CUL107,Electricity,04/03/2016,1036.76
http://statistics.data.gov.uk/id/local-authority-district/23UB,Cheltenham Borough Council,Supervision and Management,10018053,direct debit,GAS,R2101-HRA110,Gas,23/03/2016,1074.74
http://statistics.data.gov.uk/id/local-authority-district/23UB,Cheltenham Borough Council,Supervision and Management,10018053,direct debit,GAS,R2101-HRA110,Gas,23/03/2016,1149.00
http://statistics.data.gov.uk/id/local-authority-district/23UB,Cheltenham Borough Council,Recreation Centre Repairs & Maintenance,10018085,direct debit,SEVERN TRENT WATER ,R2402-REC111,Sewerage and Environmental Services,24/03/2016,1183.41
http://statistics.data.gov.uk/id/local-authority-district/23UB,Cheltenham Borough Council,Supervision and Management,10017829,direct debit,GAS,R2101-HRA110,Gas,22/02/2016,1193.46
http://statistics.data.gov.uk/id/local-authority-district/23UB,Cheltenham Borough Council,Recreation Centre Repairs & Maintenance,10018085,direct debit,SEVERN TRENT WATER,R2402-REC111,Sewerage and Environmental Services,24/03/2016,1224.99
http://statistics.data.gov.uk/id/local-authority-district/23UB,Cheltenham Borough Council,Recreation Centre Repairs & Maintenance,10017829,direct debit,GAS,R2101-REC111,Gas,22/02/2016,1231.45
http://statistics.data.gov.uk/id/local-authority-district/23UB,Cheltenham Borough Council,Cheltenham Depot,10018049,direct debit,SEVERN TRENT WATER ,R2402-ADB103,Sewerage and Environmental Services,24/03/2016,1232.92
http://statistics.data.gov.uk/id/local-authority-district/23UB,Cheltenham Borough Council,Art Gallery & Museum Operations,10017953,direct debit,SOUTHERN ELECTRIC ,R2100-CUL107,Electricity,04/03/2016,1241.81
http://statistics.data.gov.uk/id/local-authority-district/23UB,Cheltenham Borough Council,Supervision and Management,10017829,direct debit,GAS,R2101-HRA110,Gas,22/02/2016,1310.87
http://statistics.data.gov.uk/id/local-authority-district/23UB,Cheltenham Borough Council,Treasury Management,10017940,direct debit,LLOYDS BANK,R4428-COR006,Services - credit card charges,14/03/2016,1380.74
http://statistics.data.gov.uk/id/local-authority-district/23UB,Cheltenham Borough Council,Supervision and Management,10017829,direct debit,GAS,R2101-HRA110,Gas,22/02/2016,1558.30
http://statistics.data.gov.uk/id/local-authority-district/23UB,Cheltenham Borough Council,Town Hall Repairs & Maintenance,10018053,direct debit,GAS,R2101-CUL112,Gas,23/03/2016,1642.20
http://statistics.data.gov.uk/id/local-authority-district/23UB,Cheltenham Borough Council,Treasury Management,10017812,direct debit,LLOYDS BANK,R4428-COR006,Services - credit card charges,12/02/2016,1702.13
http://statistics.data.gov.uk/id/local-authority-district/23UB,Cheltenham Borough Council,AGM Trading Account,10017940,direct debit,LLOYDS BANK,R4428-TAC101,Services - credit card charges,14/03/2016,1776.59
http://statistics.data.gov.uk/id/local-authority-district/23UB,Cheltenham Borough Council,Arle Road Nursery Operations,10017829,direct debit,GAS,R2101-OPS101,Gas,22/02/2016,1835.53
http://statistics.data.gov.uk/id/local-authority-district/23UB,Cheltenham Borough Council,Treasury Management,10017812,direct debit,LLOYDS BANK,R4428-COR006,Services - credit card charges,12/02/2016,1841.06
http://statistics.data.gov.uk/id/local-authority-district/23UB,Cheltenham Borough Council,Recreation Centre Repairs & Maintenance,10017968,direct debit,E-ON ,R2100-REC111,Electricity,17/03/2016,1999.89
http://statistics.data.gov.uk/id/local-authority-district/23UB,Cheltenham Borough Council,Town Hall Repairs & Maintenance,10017829,direct debit,GAS,R2101-CUL112,Gas,22/02/2016,2004.72
http://statistics.data.gov.uk/id/local-authority-district/23UB,Cheltenham Borough Council,Art Gallery & Museum Repairs & Maintenance,10018053,direct debit,GAS,R2101-CUL117,Gas,23/03/2016,2046.14
http://statistics.data.gov.uk/id/local-authority-district/23UB,Cheltenham Borough Council,Car Parks - Off Street Operations,10017869,direct debit,S/LINE ,R4428-CPK001,Services - credit card charges,19/02/2016,2106.74
http://statistics.data.gov.uk/id/local-authority-district/23UB,Cheltenham Borough Council,Recreation Centre Repairs & Maintenance,10018006,direct debit,SEVERN TRENT WATER ,R2401-REC111,Water Services - Metered,21/03/2016,2118.17
http://statistics.data.gov.uk/id/local-authority-district/23UB,Cheltenham Borough Council,Recreation Centre Repairs & Maintenance,10017828,direct debit,E-ON ,R2100-REC111,Electricity,16/02/2016,2173.87
http://statistics.data.gov.uk/id/local-authority-district/23UB,Cheltenham Borough Council,Art Gallery & Museum Repairs & Maintenance,10017829,direct debit,GAS,R2101-CUL117,Gas,22/02/2016,2184.84
http://statistics.data.gov.uk/id/local-authority-district/23UB,Cheltenham Borough Council,Art Gallery & Museum Repairs & Maintenance,10018053,direct debit,GAS,R2101-CUL117,Gas,23/03/2016,2196.24
http://statistics.data.gov.uk/id/local-authority-district/23UB,Cheltenham Borough Council,Town Hall Repairs & Maintenance,10017828,direct debit,E-ON ,R2100-CUL112,Electricity,16/02/2016,2453.97
http://statistics.data.gov.uk/id/local-authority-district/23UB,Cheltenham Borough Council,Recreation Centre Repairs & Maintenance,10018085,direct debit,SEVERN TRENT WATER ,R2401-REC111,Water Services - Metered,24/03/2016,2469.60
http://statistics.data.gov.uk/id/local-authority-district/23UB,Cheltenham Borough Council,Car Parks - Off Street Operations,10018195,direct debit,S/LINE ,R4428-CPK001,Services - credit card charges,21/03/2016,2491.12
http://statistics.data.gov.uk/id/local-authority-district/23UB,Cheltenham Borough Council,Cheltenham Municipal Offices,10018053,direct debit,GAS,R2101-ADB101,Gas,23/03/2016,2547.67
http://statistics.data.gov.uk/id/local-authority-district/23UB,Cheltenham Borough Council,Town Hall Repairs & Maintenance,10017947,direct debit,E-ON ,R2100-CUL112,Electricity,16/03/2016,2613.88
http://statistics.data.gov.uk/id/local-authority-district/23UB,Cheltenham Borough Council,"Cemetery, Crematorium and Churchyards",10018053,direct debit,GAS,R2101-CCM001,Gas,23/03/2016,2614.22
http://statistics.data.gov.uk/id/local-authority-district/23UB,Cheltenham Borough Council,Cheltenham Municipal Offices,10017829,direct debit,GAS,R2101-ADB101,Gas,22/02/2016,2760.12
http://statistics.data.gov.uk/id/local-authority-district/23UB,Cheltenham Borough Council,Art Gallery & Museum Repairs & Maintenance,10017828,direct debit,E-ON ,R2100-CUL117,Electricity,16/02/2016,2846.26
http://statistics.data.gov.uk/id/local-authority-district/23UB,Cheltenham Borough Council,Cheltenham Depot,10018053,direct debit,GAS,R2101-ADB103,Gas,23/03/2016,3035.14
http://statistics.data.gov.uk/id/local-authority-district/23UB,Cheltenham Borough Council,"Cemetery, Crematorium and Churchyards",10017829,direct debit,GAS,R2101-CCM001,Gas,22/02/2016,3235.22
http://statistics.data.gov.uk/id/local-authority-district/23UB,Cheltenham Borough Council,Art Gallery & Museum Repairs & Maintenance,10017968,direct debit,E-ON ,R2100-CUL117,Electricity,17/03/2016,3267.03
http://statistics.data.gov.uk/id/local-authority-district/23UB,Cheltenham Borough Council,Cheltenham Depot,10017828,direct debit,E-ON ,R2100-ADB103,Electricity,16/02/2016,3351.82
http://statistics.data.gov.uk/id/local-authority-district/23UB,Cheltenham Borough Council,Telephones,10017843,direct debit,VIRGIN MEDIA ,R4515-SUP006,Comms - Telephone Call Charges,01/03/2016,3422.95
http://statistics.data.gov.uk/id/local-authority-district/23UB,Cheltenham Borough Council,Cheltenham Depot,10017947,direct debit,E-ON ,R2100-ADB103,Electricity,16/03/2016,3490.39
http://statistics.data.gov.uk/id/local-authority-district/23UB,Cheltenham Borough Council,Recreation Centre Repairs & Maintenance,10017828,direct debit,E-ON ,R2100-REC111,Electricity,16/02/2016,3491.34
http://statistics.data.gov.uk/id/local-authority-district/23UB,Cheltenham Borough Council,Recreation Centre Repairs & Maintenance,10017947,direct debit,E-ON ,R2100-REC111,Electricity,16/03/2016,3786.10
http://statistics.data.gov.uk/id/local-authority-district/23UB,Cheltenham Borough Council,Cheltenham Municipal Offices,10017947,direct debit,E-ON ,R2100-ADB101,Electricity,16/03/2016,3801.99
http://statistics.data.gov.uk/id/local-authority-district/23UB,Cheltenham Borough Council,Cheltenham Depot,10017829,direct debit,GAS,R2101-ADB103,Gas,22/02/2016,3844.62
http://statistics.data.gov.uk/id/local-authority-district/23UB,Cheltenham Borough Council,Cheltenham Municipal Offices,10017828,direct debit,E-ON ,R2100-ADB101,Electricity,16/02/2016,4076.36
http://statistics.data.gov.uk/id/local-authority-district/23UB,Cheltenham Borough Council,Recreation Centre Repairs & Maintenance,10018053,direct debit,GAS,R2101-REC111,Gas,23/03/2016,10209.27
http://statistics.data.gov.uk/id/local-authority-district/23UB,Cheltenham Borough Council,Supervision and Management,10017938,direct debit,SOUTHERN ELECTRIC ,R2100-HRA110,Electricity,04/03/2016,10280.86
http://statistics.data.gov.uk/id/local-authority-district/23UB,Cheltenham Borough Council,Recreation Centre Repairs & Maintenance,10017829,direct debit,GAS,R2101-REC111,Gas,22/02/2016,10802.72
http://statistics.data.gov.uk/id/local-authority-district/23UB,Cheltenham Borough Council,Arle Road Nursery Operations,10018053,direct debit,GAS,R2101-OPS101,Gas,23/03/2016,33369.02
http://statistics.data.gov.uk/id/local-authority-district/23UB,Cheltenham Borough Council,Pensions Backfunding,10017749,direct debit,GLOUCESTER COUNTY COUNCIL,R1901-SUP038,Contribution to Pension Fund,01/03/2016,211666.00
http://statistics.data.gov.uk/id/local-authority-district/23UB,Cheltenham Borough Council,Pensions Backfunding,10018100,direct debit,GLOUCESTER COUNTY COUNCIL,R1901-SUP038,Contribution to Pension Fund,30/03/2016,211666.00
http://statistics.data.gov.uk/id/local-authority-district/23UB,Cheltenham Borough Council,Twinning Expenses,10018088,procurement card,EASYJET,R4401-DRM011,Services - Fees and Charges,30/03/2016,667.93
http://statistics.data.gov.uk/id/local-authority-district/23UB,Cheltenham Borough Council,Council Tax Collection,10017961,procurement card, HM COURTS SERVICE,R4420-LTC001,Legal Expenses And Court Costs,17/03/2016,801.00
http://statistics.data.gov.uk/id/local-authority-district/23UB,Cheltenham Borough Council,"Cemetery, Crematorium and Churchyards",10018163,procurement card, AR TWIGGS,R4003-CCM001,Tools & Equipment - R & M,31/03/2016,825.88
http://statistics.data.gov.uk/id/local-authority-district/23UB,Cheltenham Borough Council,Council Tax Collection,10018088,procurement card,HM COURTS SERVICE,R4420-LTC001,Legal Expenses And Court Costs,30/03/2016,897.00
http://statistics.data.gov.uk/id/local-authority-district/23UB,Cheltenham Borough Council,Council Tax Collection,10017972,procurement card, HM COURTS SERVICE,R4420-LTC001,Legal Expenses And Court Costs,18/03/2016,1002.00
http://statistics.data.gov.uk/id/local-authority-district/23UB,Cheltenham Borough Council,"Cemetery, Crematorium and Churchyards",10018169,procurement card,CARDIAC SCIENCE,R4000-CCM001,Equipment Purchase,31/03/2016,1080.00
